[Event "Titled Tuesday Blitz February 15 Early 2022"]
[White "Grineva, Marianna"]
[Black "Desideri, Ricardo Maruchi"]
[WhiteFideId "14102013"]
[BlackFideId "2110440"]
[WhiteElo "1954"]
[BlackElo "1945"]
[Result "1-0"]
[Round "06"]
[TimeControl "180+1"]
[Date "2022.02.15"]
[WhiteClock "0:00:23"]
[BlackClock "0:00:15"]

1. e4 {[%clk 0:02:28]}  c5 {[%clk 0:02:56]} 2. Nf3 {[%clk 0:02:28]}  d6 {[%clk 0:02:56]} 3. Nc3 {[%clk 0:02:27]}  Nf6 {[%clk 0:02:55]} 4. d4 {[%clk 0:02:27]}  cxd4 {[%clk 0:02:55]} 5. Nxd4 {[%clk 0:02:28]}  a6 {[%clk 0:02:56]} 6. f3 {[%clk 0:02:24]}  e6 {[%clk 0:02:56]} 7. Be3 {[%clk 0:02:25]}  b5 {[%clk 0:02:56]} 8. Qd2 {[%clk 0:02:20]}  Bb7 {[%clk 0:02:57]} 9. a4 {[%clk 0:02:19]}  b4 {[%clk 0:02:55]} 10. Nce2 {[%clk 0:02:17]}  d5 {[%clk 0:02:56]} 11. e5 {[%clk 0:02:14]}  Nfd7 {[%clk 0:02:56]} 12. f4 {[%clk 0:02:14]}  Nc5 {[%clk 0:02:51]} 13. Ng3 {[%clk 0:02:10]}  Nbd7 {[%clk 0:02:41]} 14. Be2 {[%clk 0:02:05]}  Be7 {[%clk 0:02:37]} 15. O-O {[%clk 0:02:05]}  Ne4 {[%clk 0:02:30]} 16. Nxe4 {[%clk 0:02:03]}  dxe4 {[%clk 0:02:30]} 17. Rad1 {[%clk 0:01:52]}  Nb6 {[%clk 0:02:14]} 18. b3 {[%clk 0:01:50]}  Nd5 {[%clk 0:02:10]} 19. Kh1 {[%clk 0:01:46]}  O-O {[%clk 0:02:07]} 20. f5 {[%clk 0:01:43]}  Nc3 {[%clk 0:01:35]} 21. Rde1 {[%clk 0:01:37]}  Qc7 {[%clk 0:01:12]} 22. f6 {[%clk 0:01:31]}  Bc5 {[%clk 0:01:09]} 23. fxg7 {[%clk 0:01:05]}  Rfd8 {[%clk 0:01:05]} 24. Bh5 {[%clk 0:00:59]}  Rd7 {[%clk 0:00:55]} 25. Qf2 {[%clk 0:00:55]}  Nd5 {[%clk 0:00:35]} 26. Nxe6 {[%clk 0:00:34]}  Bxe3 {[%clk 0:00:26]} 27. Rxe3 {[%clk 0:00:31]}  Nxe3 {[%clk 0:00:18]} 28. Nxc7 {[%clk 0:00:30]}  Nxf1 {[%clk 0:00:15]} 29. Nxa8 {[%clk 0:00:25]}  Bxa8 {[%clk 0:00:15]} 30. Qxf1 {[%clk 0:00:23]} 1-0


[Site "https://www.chess.com"]

[Event "Titled Tuesday Blitz February 15 Early 2022"]
[White "Gunina, Valentina"]
[Black "Stepanencu, Nicodim-Cosmin"]
[WhiteFideId "4167570"]
[BlackFideId "1256220"]
[WhiteElo "2465"]
[BlackElo "1809"]
[Result "1-0"]
[Round "06"]
[TimeControl "180+1"]
[Date "2022.02.15"]
[WhiteClock "0:02:25"]
[BlackClock "0:00:46"]

1. d4 {[%clk 0:03:00]}  Nf6 {[%clk 0:02:58]} 2. c4 {[%clk 0:03:00]}  e6 {[%clk 0:02:53]} 3. Nf3 {[%clk 0:03:00]}  d5 {[%clk 0:02:53]} 4. Nc3 {[%clk 0:03:00]}  dxc4 {[%clk 0:02:52]} 5. e4 {[%clk 0:03:00]}  Bb4 {[%clk 0:02:50]} 6. Bxc4 {[%clk 0:02:59]}  Nxe4 {[%clk 0:02:48]} 7. O-O {[%clk 0:03:00]}  Nxc3 {[%clk 0:02:45]} 8. bxc3 {[%clk 0:02:59]}  Be7 {[%clk 0:02:46]} 9. Bf4 {[%clk 0:02:57]}  O-O {[%clk 0:02:44]} 10. Re1 {[%clk 0:02:58]}  Nd7 {[%clk 0:02:36]} 11. Qc2 {[%clk 0:02:57]}  b6 {[%clk 0:02:31]} 12. Rad1 {[%clk 0:02:52]}  c6 {[%clk 0:02:21]} 13. Bd3 {[%clk 0:02:51]}  h6 {[%clk 0:02:19]} 14. Qc1 {[%clk 0:02:50]}  g5 {[%clk 0:01:22]} 15. Bg3 {[%clk 0:02:45]}  Kg7 {[%clk 0:01:23]} 16. Ne5 {[%clk 0:02:43]}  Nxe5 {[%clk 0:01:21]} 17. dxe5 {[%clk 0:02:43]}  Qc7 {[%clk 0:01:10]} 18. f4 {[%clk 0:02:42]}  c5 {[%clk 0:00:57]} 19. fxg5 {[%clk 0:02:39]}  hxg5 {[%clk 0:00:56]} 20. Rf1 {[%clk 0:02:36]}  Bb7 {[%clk 0:00:54]} 21. Rf6 {[%clk 0:02:36]}  Rg8 {[%clk 0:00:49]} 22. Qxg5+ {[%clk 0:02:34]}  Kf8 {[%clk 0:00:49]} 23. Rxf7+ {[%clk 0:02:26]}  Kxf7 {[%clk 0:00:46]} 24. Rf1+ {[%clk 0:02:26]}  Ke8 {[%clk 0:00:45]} 25. Qxg8+ {[%clk 0:02:25]}  Kd7 {[%clk 0:00:46]} 26. Bb5+ {[%clk 0:02:25]} 1-0


[Site "https://www.chess.com"]

[Event "Titled Tuesday Blitz February 15 Early 2022"]
[White "Gurevich, Dmitry"]
[Black "Wong, Yinn Long"]
[WhiteFideId "2000407"]
[BlackFideId "5707684"]
[WhiteElo "2506"]
[BlackElo "2055"]
[Result "1-0"]
[Round "06"]
[TimeControl "180+1"]
[Date "2022.02.15"]
[WhiteClock "0:00:10"]
[BlackClock "0:00:03"]

1. d4 {[%clk 0:03:00]}  Nf6 {[%clk 0:03:00]} 2. c4 {[%clk 0:02:59]}  e6 {[%clk 0:03:00]} 3. g3 {[%clk 0:02:58]}  Bb4+ {[%clk 0:03:00]} 4. Nd2 {[%clk 0:02:57]}  O-O {[%clk 0:02:59]} 5. Bg2 {[%clk 0:02:56]}  a5 {[%clk 0:02:56]} 6. Nf3 {[%clk 0:02:56]}  Re8 {[%clk 0:02:50]} 7. O-O {[%clk 0:02:55]}  Nc6 {[%clk 0:02:41]} 8. Qc2 {[%clk 0:02:55]}  Bxd2 {[%clk 0:02:37]} 9. Bxd2 {[%clk 0:02:53]}  d6 {[%clk 0:02:37]} 10. Bc3 {[%clk 0:02:44]}  Qe7 {[%clk 0:02:31]} 11. Rfe1 {[%clk 0:02:26]}  e5 {[%clk 0:02:30]} 12. dxe5 {[%clk 0:02:20]}  Nxe5 {[%clk 0:02:18]} 13. b3 {[%clk 0:02:17]}  Nc6 {[%clk 0:02:08]} 14. Nd4 {[%clk 0:02:09]}  Ne5 {[%clk 0:02:02]} 15. Rad1 {[%clk 0:02:01]}  c6 {[%clk 0:01:56]} 16. h3 {[%clk 0:01:58]}  a4 {[%clk 0:01:56]} 17. e4 {[%clk 0:01:53]}  axb3 {[%clk 0:01:55]} 18. axb3 {[%clk 0:01:52]}  Qc7 {[%clk 0:01:27]} 19. f4 {[%clk 0:01:48]}  Ng6 {[%clk 0:01:28]} 20. Nf5 {[%clk 0:01:45]}  Bxf5 {[%clk 0:01:22]} 21. exf5 {[%clk 0:01:43]}  Nf8 {[%clk 0:01:22]} 22. g4 {[%clk 0:01:35]}  N6d7 {[%clk 0:01:16]} 23. Rxe8 {[%clk 0:01:20]}  Rxe8 {[%clk 0:01:16]} 24. Kh1 {[%clk 0:01:19]}  Nc5 {[%clk 0:00:54]} 25. b4 {[%clk 0:01:15]}  Ncd7 {[%clk 0:00:55]} 26. Qd2 {[%clk 0:01:08]}  Nb6 {[%clk 0:00:54]} 27. Qd4 {[%clk 0:01:04]}  f6 {[%clk 0:00:54]} 28. c5 {[%clk 0:01:01]}  dxc5 {[%clk 0:00:54]} 29. bxc5 {[%clk 0:01:00]}  Nbd7 {[%clk 0:00:54]} 30. Bf1 {[%clk 0:00:55]}  Kh8 {[%clk 0:00:47]} 31. Bc4 {[%clk 0:00:54]}  b6 {[%clk 0:00:40]} 32. cxb6 {[%clk 0:00:39]}  Nxb6 {[%clk 0:00:41]} 33. Bb3 {[%clk 0:00:32]}  c5 {[%clk 0:00:41]} 34. Qd6 {[%clk 0:00:28]}  Qb7+ {[%clk 0:00:41]} 35. Kg1 {[%clk 0:00:23]}  Qf3 {[%clk 0:00:22]} 36. Qd3 {[%clk 0:00:17]}  Re3 {[%clk 0:00:16]} 37. Qf1 {[%clk 0:00:16]}  Qxf1+ {[%clk 0:00:08]} 38. Kxf1 {[%clk 0:00:15]}  Rxc3 {[%clk 0:00:09]} 39. Rd8 {[%clk 0:00:15]}  Nd7 {[%clk 0:00:09]} 40. Be6 {[%clk 0:00:14]}  h5 {[%clk 0:00:04]} 41. Bxd7 {[%clk 0:00:13]}  Kh7 {[%clk 0:00:04]} 42. Be6 {[%clk 0:00:12]}  Nxe6 {[%clk 0:00:02]} 43. fxe6 {[%clk 0:00:13]}  Re3 {[%clk 0:00:03]} 44. f5 {[%clk 0:00:12]}  hxg4 {[%clk 0:00:03]} 45. hxg4 {[%clk 0:00:12]}  Kh6 {[%clk 0:00:04]} 46. Kf2 {[%clk 0:00:12]}  Re5 {[%clk 0:00:04]} 47. Kf3 {[%clk 0:00:11]}  c4 {[%clk 0:00:04]} 48. Rh8+ {[%clk 0:00:10]}  Kg5 {[%clk 0:00:03]} 49. Rh5# {[%clk 0:00:10]} 1-0


[Site "https://www.chess.com"]

[Event "Titled Tuesday Blitz February 15 Early 2022"]
[White "Guseva, Marina"]
[Black "Kurbonboeva, Sarvinoz"]
[WhiteFideId "4149351"]
[BlackFideId "14201780"]
[WhiteElo "2232"]
[BlackElo "2054"]
[Result "1-0"]
[Round "06"]
[TimeControl "180+1"]
[Date "2022.02.15"]
[WhiteClock "0:00:12"]
[BlackClock "0:00:01"]

1. d4 {[%clk 0:03:00]}  d5 {[%clk 0:02:54]} 2. c4 {[%clk 0:02:59]}  e6 {[%clk 0:02:54]} 3. Nf3 {[%clk 0:02:55]}  c6 {[%clk 0:02:54]} 4. Nc3 {[%clk 0:02:53]}  dxc4 {[%clk 0:02:51]} 5. e3 {[%clk 0:02:50]}  b5 {[%clk 0:02:49]} 6. a4 {[%clk 0:02:49]}  Bb4 {[%clk 0:02:40]} 7. Bd2 {[%clk 0:02:48]}  a5 {[%clk 0:01:48]} 8. axb5 {[%clk 0:02:47]}  Bxc3 {[%clk 0:01:47]} 9. Bxc3 {[%clk 0:02:46]}  cxb5 {[%clk 0:01:47]} 10. b3 {[%clk 0:02:46]}  Bb7 {[%clk 0:01:40]} 11. bxc4 {[%clk 0:02:46]}  b4 {[%clk 0:01:40]} 12. Bb2 {[%clk 0:02:45]}  Nf6 {[%clk 0:01:33]} 13. Bd3 {[%clk 0:02:44]}  O-O {[%clk 0:01:31]} 14. O-O {[%clk 0:02:43]}  Nbd7 {[%clk 0:01:21]} 15. c5 {[%clk 0:02:26]}  Bc6 {[%clk 0:01:14]} 16. Bc2 {[%clk 0:02:24]}  Ne4 {[%clk 0:01:10]} 17. Ba4 {[%clk 0:02:19]}  Qc7 {[%clk 0:01:05]} 18. Qc2 {[%clk 0:02:15]}  Bd5 {[%clk 0:00:37]} 19. Rfc1 {[%clk 0:02:01]}  Rfb8 {[%clk 0:00:27]} 20. Ne1 {[%clk 0:01:46]}  b3 {[%clk 0:00:26]} 21. Qd1 {[%clk 0:01:29]}  f5 {[%clk 0:00:18]} 22. f3 {[%clk 0:01:26]}  Nef6 {[%clk 0:00:18]} 23. Nd3 {[%clk 0:01:23]}  g5 {[%clk 0:00:14]} 24. Qd2 {[%clk 0:01:12]}  g4 {[%clk 0:00:13]} 25. Ne5 {[%clk 0:00:27]}  gxf3 {[%clk 0:00:07]} 26. gxf3 {[%clk 0:00:25]}  Nxe5 {[%clk 0:00:06]} 27. dxe5 {[%clk 0:00:25]}  Nd7 {[%clk 0:00:04]} 28. Kf2 {[%clk 0:00:23]}  Kf7 {[%clk 0:00:04]} 29. c6 {[%clk 0:00:19]}  Nb6 {[%clk 0:00:04]} 30. Qd4 {[%clk 0:00:16]}  Nxa4 {[%clk 0:00:03]} 31. Rxa4 {[%clk 0:00:16]}  Rg8 {[%clk 0:00:03]} 32. Qh4 {[%clk 0:00:16]}  Ke8 {[%clk 0:00:01]} 33. Ba3 {[%clk 0:00:12]} 1-0


[Site "https://www.chess.com"]

[Event "Titled Tuesday Blitz February 15 Early 2022"]
[White "Hakobyan, Aram"]
[Black "Janaszak, Dawid"]
[WhiteFideId "13306677"]
[BlackFideId "1119206"]
[WhiteElo "2557"]
[BlackElo "2199"]
[Result "1-0"]
[Round "06"]
[TimeControl "180+1"]
[Date "2022.02.15"]
[WhiteClock "0:00:26"]
[BlackClock "0:00:01"]

1. b4 {[%clk 0:03:00]}  e5 {[%clk 0:02:58]} 2. Bb2 {[%clk 0:03:01]}  Bxb4 {[%clk 0:02:58]} 3. Bxe5 {[%clk 0:03:01]}  Nf6 {[%clk 0:02:58]} 4. c3 {[%clk 0:03:02]}  Bc5 {[%clk 0:02:56]} 5. Nf3 {[%clk 0:03:01]}  O-O {[%clk 0:02:56]} 6. e3 {[%clk 0:03:00]}  b6 {[%clk 0:02:52]} 7. Be2 {[%clk 0:02:59]}  Bb7 {[%clk 0:02:52]} 8. O-O {[%clk 0:02:59]}  Nc6 {[%clk 0:02:52]} 9. Bxf6 {[%clk 0:02:59]}  Qxf6 {[%clk 0:02:53]} 10. d4 {[%clk 0:02:59]}  Be7 {[%clk 0:02:50]} 11. Nbd2 {[%clk 0:03:00]}  d5 {[%clk 0:02:48]} 12. c4 {[%clk 0:02:58]}  dxc4 {[%clk 0:02:47]} 13. Nxc4 {[%clk 0:02:59]}  Qg6 {[%clk 0:02:38]} 14. Rc1 {[%clk 0:02:54]}  Rad8 {[%clk 0:02:35]} 15. Bd3 {[%clk 0:02:42]}  Qh5 {[%clk 0:02:32]} 16. Be4 {[%clk 0:02:39]}  Na5 {[%clk 0:01:56]} 17. Bxb7 {[%clk 0:02:37]}  Nxb7 {[%clk 0:01:57]} 18. Nfe5 {[%clk 0:02:06]}  Qxd1 {[%clk 0:01:56]} 19. Rfxd1 {[%clk 0:02:07]}  Bd6 {[%clk 0:01:44]} 20. Nc6 {[%clk 0:02:07]}  Ra8 {[%clk 0:01:43]} 21. e4 {[%clk 0:02:01]}  Bf4 {[%clk 0:01:29]} 22. Rc2 {[%clk 0:02:00]}  Nd8 {[%clk 0:01:15]} 23. Ne7+ {[%clk 0:02:00]}  Kh8 {[%clk 0:01:15]} 24. Nd5 {[%clk 0:01:57]}  Ne6 {[%clk 0:01:15]} 25. g3 {[%clk 0:01:49]}  Bh6 {[%clk 0:01:10]} 26. Ne7 {[%clk 0:01:17]}  c5 {[%clk 0:00:51]} 27. dxc5 {[%clk 0:01:17]}  bxc5 {[%clk 0:00:46]} 28. Nf5 {[%clk 0:01:17]}  Bg5 {[%clk 0:00:44]} 29. Rd7 {[%clk 0:01:13]}  Bf6 {[%clk 0:00:40]} 30. e5 {[%clk 0:01:12]}  Bd8 {[%clk 0:00:26]} 31. Ncd6 {[%clk 0:01:12]}  Kg8 {[%clk 0:00:25]} 32. Rb2 {[%clk 0:01:11]}  Bb6 {[%clk 0:00:20]} 33. a4 {[%clk 0:01:00]}  Nd4 {[%clk 0:00:19]} 34. Ne7+ {[%clk 0:00:53]}  Kh8 {[%clk 0:00:18]} 35. Nd5 {[%clk 0:00:54]}  Nf3+ {[%clk 0:00:18]} 36. Kg2 {[%clk 0:00:53]}  Nxe5 {[%clk 0:00:18]} 37. Re7 {[%clk 0:00:53]}  f6 {[%clk 0:00:11]} 38. a5 {[%clk 0:00:52]}  Bd8 {[%clk 0:00:10]} 39. Reb7 {[%clk 0:00:51]}  Bxa5 {[%clk 0:00:09]} 40. f4 {[%clk 0:00:50]}  Nc6 {[%clk 0:00:08]} 41. Re2 {[%clk 0:00:33]}  Bb4 {[%clk 0:00:07]} 42. Rc7 {[%clk 0:00:30]}  Nd4 {[%clk 0:00:05]} 43. Ree7 {[%clk 0:00:28]}  c4 {[%clk 0:00:05]} 44. Rxg7 {[%clk 0:00:29]}  Rfb8 {[%clk 0:00:01]} 45. Rxh7+ {[%clk 0:00:29]}  Kg8 {[%clk 0:00:01]} 46. Nxf6+ {[%clk 0:00:26]} 1-0


[Site "https://www.chess.com"]

[Event "Titled Tuesday Blitz February 15 Early 2022"]
[White "Dronavalli, Harika"]
[Black "Dubov, Daniil"]
[WhiteFideId "5015197"]
[BlackFideId "24126055"]
[WhiteElo "2382"]
[BlackElo "2791"]
[Result "0-1"]
[Round "06"]
[TimeControl "180+1"]
[Date "2022.02.15"]
[WhiteClock "0:00:07"]
[BlackClock "0:00:29"]

1. d4 {[%clk 0:03:00]}  Nf6 {[%clk 0:02:59]} 2. c4 {[%clk 0:03:00]}  e6 {[%clk 0:02:57]} 3. Nc3 {[%clk 0:03:00]}  d5 {[%clk 0:02:58]} 4. Bg5 {[%clk 0:02:57]}  Be7 {[%clk 0:02:57]} 5. e3 {[%clk 0:02:56]}  O-O {[%clk 0:02:57]} 6. Nf3 {[%clk 0:02:56]}  h6 {[%clk 0:02:56]} 7. Bxf6 {[%clk 0:02:56]}  Bxf6 {[%clk 0:02:56]} 8. Qc2 {[%clk 0:02:57]}  dxc4 {[%clk 0:02:50]} 9. Bxc4 {[%clk 0:02:55]}  Nd7 {[%clk 0:02:51]} 10. a3 {[%clk 0:02:47]}  c5 {[%clk 0:02:50]} 11. Rd1 {[%clk 0:02:43]}  cxd4 {[%clk 0:02:49]} 12. Nxd4 {[%clk 0:02:42]}  Qe7 {[%clk 0:02:47]} 13. Ba2 {[%clk 0:02:40]}  Nb6 {[%clk 0:02:45]} 14. Ne4 {[%clk 0:02:26]}  Bd7 {[%clk 0:02:37]} 15. Bb1 {[%clk 0:01:55]}  g6 {[%clk 0:02:31]} 16. Nxf6+ {[%clk 0:01:48]}  Qxf6 {[%clk 0:02:31]} 17. O-O {[%clk 0:01:48]}  Rac8 {[%clk 0:02:26]} 18. Qe2 {[%clk 0:01:38]}  Rc7 {[%clk 0:02:22]} 19. Nb5 {[%clk 0:01:13]}  Rc5 {[%clk 0:02:20]} 20. Nd6 {[%clk 0:01:12]}  Bc6 {[%clk 0:02:16]} 21. Ne4 {[%clk 0:01:11]}  Bxe4 {[%clk 0:02:14]} 22. Bxe4 {[%clk 0:01:10]}  Rc7 {[%clk 0:02:07]} 23. Rd4 {[%clk 0:01:09]}  Rfc8 {[%clk 0:02:05]} 24. Rfd1 {[%clk 0:01:09]}  Nc4 {[%clk 0:02:00]} 25. h3 {[%clk 0:01:05]}  Kg7 {[%clk 0:01:59]} 26. a4 {[%clk 0:01:03]}  Qe5 {[%clk 0:01:47]} 27. b3 {[%clk 0:00:55]}  Na5 {[%clk 0:01:46]} 28. f4 {[%clk 0:00:43]}  Qf6 {[%clk 0:01:44]} 29. Qb5 {[%clk 0:00:36]}  Rc5 {[%clk 0:01:37]} 30. Qb4 {[%clk 0:00:30]}  b6 {[%clk 0:01:35]} 31. Kh2 {[%clk 0:00:28]}  Rc3 {[%clk 0:01:26]} 32. R1d3 {[%clk 0:00:26]}  Rxd3 {[%clk 0:01:22]} 33. Rxd3 {[%clk 0:00:26]}  e5 {[%clk 0:01:13]} 34. Rd6 {[%clk 0:00:23]}  Qe7 {[%clk 0:01:13]} 35. Rxb6 {[%clk 0:00:21]}  Qh4 {[%clk 0:01:01]} 36. Rb5 {[%clk 0:00:20]}  exf4 {[%clk 0:01:00]} 37. exf4 {[%clk 0:00:10]}  Qxf4+ {[%clk 0:00:57]} 38. g3 {[%clk 0:00:09]}  Qf2+ {[%clk 0:00:41]} 39. Bg2 {[%clk 0:00:09]}  Rc2 {[%clk 0:00:38]} 40. Qe4 {[%clk 0:00:09]}  Nc6 {[%clk 0:00:37]} 41. Rb7 {[%clk 0:00:09]}  Nd4 {[%clk 0:00:32]} 42. Qe5+ {[%clk 0:00:09]}  Kh7 {[%clk 0:00:32]} 43. Qd5 {[%clk 0:00:07]}  Nf3+ {[%clk 0:00:29]} 0-1


[Site "https://www.chess.com"]

[Event "Titled Tuesday Blitz February 15 Early 2022"]
[White "Indjic, Aleksandar"]
[Black "Krysa, Leandro"]
[WhiteFideId "911925"]
[BlackFideId "116807"]
[WhiteElo "2616"]
[BlackElo "2490"]
[Result "0-1"]
[Round "06"]
[TimeControl "180+1"]
[Date "2022.02.15"]
[WhiteClock "0:00:10"]
[BlackClock "0:00:04"]

1. e4 {[%clk 0:03:00]}  c5 {[%clk 0:03:00]} 2. Nc3 {[%clk 0:03:00]}  Nc6 {[%clk 0:02:59]} 3. Bb5 {[%clk 0:02:59]}  Nd4 {[%clk 0:02:58]} 4. Nf3 {[%clk 0:02:59]}  e6 {[%clk 0:02:55]} 5. Bd3 {[%clk 0:02:51]}  Nc6 {[%clk 0:02:51]} 6. O-O {[%clk 0:02:44]}  d6 {[%clk 0:02:48]} 7. b3 {[%clk 0:02:40]}  e5 {[%clk 0:02:46]} 8. Nd5 {[%clk 0:02:38]}  Nf6 {[%clk 0:02:44]} 9. Re1 {[%clk 0:02:33]}  Be7 {[%clk 0:02:43]} 10. Bc4 {[%clk 0:02:31]}  O-O {[%clk 0:02:40]} 11. c3 {[%clk 0:02:31]}  Bg4 {[%clk 0:02:38]} 12. h3 {[%clk 0:02:31]}  Bh5 {[%clk 0:02:38]} 13. d3 {[%clk 0:02:21]}  Nxd5 {[%clk 0:02:31]} 14. Bxd5 {[%clk 0:02:19]}  Kh8 {[%clk 0:02:28]} 15. g4 {[%clk 0:02:19]}  Bg6 {[%clk 0:02:27]} 16. Kg2 {[%clk 0:02:19]}  h6 {[%clk 0:02:11]} 17. h4 {[%clk 0:02:03]}  Bh7 {[%clk 0:01:58]} 18. Rh1 {[%clk 0:01:43]}  Qd7 {[%clk 0:01:58]} 19. Ng1 {[%clk 0:01:28]}  Bd8 {[%clk 0:01:56]} 20. Bxc6 {[%clk 0:00:58]}  bxc6 {[%clk 0:01:55]} 21. c4 {[%clk 0:00:58]}  d5 {[%clk 0:01:53]} 22. Be3 {[%clk 0:00:57]}  dxe4 {[%clk 0:01:51]} 23. dxe4 {[%clk 0:00:56]}  Bxe4+ {[%clk 0:01:47]} 24. f3 {[%clk 0:00:56]}  Qxg4+ {[%clk 0:01:44]} 25. Kf1 {[%clk 0:00:53]}  Qf5 {[%clk 0:01:40]} 26. Bxc5 {[%clk 0:00:51]}  Bd3+ {[%clk 0:01:34]} 27. Kf2 {[%clk 0:00:44]}  Bb6 {[%clk 0:01:34]} 28. Bxb6 {[%clk 0:00:43]}  axb6 {[%clk 0:01:35]} 29. Qd2 {[%clk 0:00:38]}  Rad8 {[%clk 0:01:30]} 30. Qe3 {[%clk 0:00:39]}  Rd4 {[%clk 0:01:27]} 31. Rh3 {[%clk 0:00:33]}  Rfd8 {[%clk 0:01:24]} 32. Re1 {[%clk 0:00:32]}  f6 {[%clk 0:01:16]} 33. Kg2 {[%clk 0:00:27]}  e4 {[%clk 0:01:11]} 34. f4 {[%clk 0:00:13]}  b5 {[%clk 0:00:46]} 35. cxb5 {[%clk 0:00:10]}  Bxb5 {[%clk 0:00:46]} 36. Rg3 {[%clk 0:00:10]}  c5 {[%clk 0:00:40]} 37. Kh1 {[%clk 0:00:06]}  Rd3 {[%clk 0:00:39]} 38. Qf2 {[%clk 0:00:07]}  Rd2 {[%clk 0:00:32]} 39. Ne2 {[%clk 0:00:07]}  R8d3 {[%clk 0:00:28]} 40. Rg2 {[%clk 0:00:06]}  Rf3 {[%clk 0:00:25]} 41. Qg1 {[%clk 0:00:04]}  e3 {[%clk 0:00:23]} 42. Qh2 {[%clk 0:00:04]}  Bc6 {[%clk 0:00:21]} 43. Kg1 {[%clk 0:00:04]}  Rf2 {[%clk 0:00:20]} 44. Rxf2 {[%clk 0:00:04]}  exf2+ {[%clk 0:00:20]} 45. Qxf2 {[%clk 0:00:04]}  Qg4+ {[%clk 0:00:20]} 46. Qg3 {[%clk 0:00:04]}  Qxg3+ {[%clk 0:00:20]} 47. Nxg3 {[%clk 0:00:05]}  Rg2+ {[%clk 0:00:21]} 48. Kf1 {[%clk 0:00:05]}  Rxg3 {[%clk 0:00:21]} 49. Rc1 {[%clk 0:00:06]}  Be4 {[%clk 0:00:11]} 50. Rxc5 {[%clk 0:00:05]}  f5 {[%clk 0:00:12]} 51. Kf2 {[%clk 0:00:05]}  Rg2+ {[%clk 0:00:12]} 52. Ke3 {[%clk 0:00:05]}  Rxa2 {[%clk 0:00:12]} 53. b4 {[%clk 0:00:05]}  Rb2 {[%clk 0:00:12]} 54. b5 {[%clk 0:00:05]}  Rb4 {[%clk 0:00:13]} 55. h5 {[%clk 0:00:04]}  Kg8 {[%clk 0:00:13]} 56. Re5 {[%clk 0:00:04]}  Kf7 {[%clk 0:00:12]} 57. Kd2 {[%clk 0:00:05]}  Kf6 {[%clk 0:00:12]} 58. Ke3 {[%clk 0:00:05]}  Rb3+ {[%clk 0:00:11]} 59. Kd4 {[%clk 0:00:06]}  g6 {[%clk 0:00:07]} 60. hxg6 {[%clk 0:00:05]}  Kxg6 {[%clk 0:00:08]} 61. Re6+ {[%clk 0:00:06]}  Kh5 {[%clk 0:00:07]} 62. Rb6 {[%clk 0:00:06]}  Kg4 {[%clk 0:00:06]} 63. Ke5 {[%clk 0:00:06]}  h5 {[%clk 0:00:06]} 64. Rg6+ {[%clk 0:00:07]}  Kf3 {[%clk 0:00:06]} 65. b6 {[%clk 0:00:07]}  h4 {[%clk 0:00:06]} 66. Rh6 {[%clk 0:00:08]}  Kg3 {[%clk 0:00:06]} 67. Rg6+ {[%clk 0:00:07]}  Kh2 {[%clk 0:00:06]} 68. Rh6 {[%clk 0:00:07]}  h3 {[%clk 0:00:06]} 69. Kd4 {[%clk 0:00:07]}  Kg2 {[%clk 0:00:05]} 70. b7 {[%clk 0:00:08]}  Rxb7 {[%clk 0:00:04]} 71. Rg6+ {[%clk 0:00:09]}  Kh1 {[%clk 0:00:04]} 72. Rh6 {[%clk 0:00:09]}  h2 {[%clk 0:00:04]} 73. Ke3 {[%clk 0:00:09]}  Rb2 {[%clk 0:00:04]} 74. Rh3 {[%clk 0:00:07]}  Kg2 {[%clk 0:00:03]} 75. Rg3+ {[%clk 0:00:07]}  Kh1 {[%clk 0:00:02]} 76. Rh3 {[%clk 0:00:07]}  Rb3+ {[%clk 0:00:02]} 77. Kf2 {[%clk 0:00:08]}  Rxh3 {[%clk 0:00:03]} 78. Kf1 {[%clk 0:00:08]}  Rh7 {[%clk 0:00:04]} 79. Ke2 {[%clk 0:00:09]}  Rg7 {[%clk 0:00:04]} 80. Kf2 {[%clk 0:00:09]}  Rg2+ {[%clk 0:00:03]} 81. Kf1 {[%clk 0:00:10]}  Ra2 {[%clk 0:00:03]} 82. Ke1 {[%clk 0:00:11]}  Kg2 {[%clk 0:00:03]} 83. Kd1 {[%clk 0:00:10]}  h1=Q# {[%clk 0:00:04]} 0-1


[Site "https://www.chess.com"]

[Event "Titled Tuesday Blitz February 15 Early 2022"]
[White "Kalajzic, Ivan"]
[Black "Galyas, Miklos"]
[WhiteFideId "14506378"]
[BlackFideId "707244"]
[WhiteElo "2163"]
[BlackElo "2409"]
[Result "1/2-1/2"]
[Round "06"]
[TimeControl "180+1"]
[Date "2022.02.15"]
[WhiteClock "0:00:44"]
[BlackClock "0:01:41"]

1. b3 {[%clk 0:03:00]}  Nf6 {[%clk 0:02:57]} 2. Bb2 {[%clk 0:03:01]}  g6 {[%clk 0:02:57]} 3. Bxf6 {[%clk 0:03:00]}  exf6 {[%clk 0:02:57]} 4. c4 {[%clk 0:03:00]}  d5 {[%clk 0:02:57]} 5. cxd5 {[%clk 0:03:00]}  Qxd5 {[%clk 0:02:57]} 6. Nc3 {[%clk 0:03:00]}  Qa5 {[%clk 0:02:57]} 7. a3 {[%clk 0:03:00]}  c6 {[%clk 0:02:55]} 8. b4 {[%clk 0:02:57]}  Qd8 {[%clk 0:02:54]} 9. e3 {[%clk 0:02:55]}  f5 {[%clk 0:02:54]} 10. d4 {[%clk 0:02:55]}  Bg7 {[%clk 0:02:54]} 11. Bc4 {[%clk 0:02:54]}  O-O {[%clk 0:02:54]} 12. Nf3 {[%clk 0:02:55]}  a5 {[%clk 0:02:53]} 13. h4 {[%clk 0:02:51]}  Nd7 {[%clk 0:02:50]} 14. h5 {[%clk 0:02:50]}  Nb6 {[%clk 0:02:47]} 15. Bb3 {[%clk 0:02:45]}  axb4 {[%clk 0:02:46]} 16. axb4 {[%clk 0:02:44]}  Rxa1 {[%clk 0:02:46]} 17. Qxa1 {[%clk 0:02:45]}  Qd6 {[%clk 0:02:46]} 18. hxg6 {[%clk 0:02:42]}  hxg6 {[%clk 0:02:41]} 19. Qa5 {[%clk 0:02:32]}  Nd7 {[%clk 0:02:40]} 20. b5 {[%clk 0:01:44]}  c5 {[%clk 0:02:37]} 21. Nd5 {[%clk 0:01:39]}  cxd4 {[%clk 0:02:33]} 22. exd4 {[%clk 0:01:35]}  Re8+ {[%clk 0:02:25]} 23. Kf1 {[%clk 0:01:36]}  b6 {[%clk 0:02:23]} 24. Qb4 {[%clk 0:01:33]}  Qxb4 {[%clk 0:02:21]} 25. Nxb4 {[%clk 0:01:34]}  Nf8 {[%clk 0:02:16]} 26. Ng5 {[%clk 0:01:21]}  Ne6 {[%clk 0:02:14]} 27. Nxe6 {[%clk 0:01:13]}  Bxe6 {[%clk 0:02:14]} 28. d5 {[%clk 0:01:14]}  Bd7 {[%clk 0:02:12]} 29. Nc6 {[%clk 0:01:12]}  Bc3 {[%clk 0:02:07]} 30. g3 {[%clk 0:01:11]}  Re1+ {[%clk 0:02:05]} 31. Kg2 {[%clk 0:01:11]}  Rxh1 {[%clk 0:02:05]} 32. Kxh1 {[%clk 0:01:12]}  Kf8 {[%clk 0:02:03]} 33. Kg2 {[%clk 0:01:06]}  g5 {[%clk 0:01:56]} 34. f4 {[%clk 0:00:56]}  gxf4 {[%clk 0:01:55]} 35. gxf4 {[%clk 0:00:57]}  Bd2 {[%clk 0:01:50]} 36. Kf3 {[%clk 0:00:57]}  Ke8 {[%clk 0:01:50]} 37. Bc4 {[%clk 0:00:57]}  Bxc6 {[%clk 0:01:46]} 38. dxc6 {[%clk 0:00:53]}  f6 {[%clk 0:01:42]} 39. Be6 {[%clk 0:00:52]}  Ke7 {[%clk 0:01:42]} 40. Bxf5 {[%clk 0:00:52]}  Kd6 {[%clk 0:01:42]} 41. Ke4 {[%clk 0:00:51]}  Bc1 {[%clk 0:01:42]} 42. Bc8 {[%clk 0:00:49]}  Bd2 {[%clk 0:01:42]} 43. Kf5 {[%clk 0:00:45]}  Bc3 {[%clk 0:01:41]} 44. Ke4 {[%clk 0:00:44]}  Bd2 {[%clk 0:01:41]} 1/2-1/2


[Site "https://www.chess.com"]